Workbook

Sheet 2025年全县17个乡镇（街道）衔接资金使用情况
B1: 附件
B2: 2025年全县17个乡镇（街道）衔接资金使用情况
B3: 制表单位：揭西县乡村振兴局 | G3: 单位：万元 | J3: 数据截止时间：2026年2月3日
B4: 乡镇（街道） | C4: 中央衔接推进乡村振兴补助资金 | F4: 乡村振兴驻镇帮镇扶村资金
C5: 资金到位情况 | D5: 支出情况 | F5: 资金拨付到位情况 | K5: 支出情况
D6: 已支出 | E6: 支出率 | F6: 小计 | G6: 省级 | I6: 东莞 | J6: 县级 | K6: 已支出 | L6: 支出率
G7: 省级配套 | H7: 省级资金
B8: 合计 | C8: =SUM(C9:C25) -> 136 | D8: =SUM(D9:D25) -> 106 | E8: =D8/C8 -> 78% | F8: =SUM(F9:F25) -> 16495 | G8: 1775 | H8: 4000 | I8: 9600 | J8: 1120 | K8: 5081.19 | L8: =K8/F8 -> 30.80%
B9: 河婆街道 | C9: =VLOOKUP(B:B,'[1]2025年'!$B:$D,3,0) -> 31.00 | D9: =VLOOKUP(B:B,'[2]2025年'!$B:$P,15,0) -> 31.00 | E9: =D9/C9 -> 100% | F9: =G9+H9+I9+J9 -> 500 | G9: 0 | H9: 0 | I9: 0 | J9: 500 | K9: =VLOOKUP(B:B,'[2]2025年'!$B:$V,21,0) -> 358.42 | L9: =K9/F9 -> 71.68%
B10: 棉湖镇 | F10: =G10+H10+I10+J10 -> 640 | G10: 40 | H10: 230 | I10: 330 | J10: 40 | K10: =VLOOKUP(B:B,'[2]2025年'!$B:$V,21,0) -> 402.60 | L10: =K10/F10 -> 62.91%
B11: 龙潭镇 | F11: =G11+H11+I11+J11 -> 1000 | G11: 85 | H11: 130 | I11: 745 | J11: 40 | K11: =VLOOKUP(B:B,'[2]2025年'!$B:$V,21,0) -> 582.47 | L11: 58.25%
B12: 大溪镇 | C12: =VLOOKUP(B:B,'[1]2025年'!$B:$D,3,0) -> 30.00 | D12: =VLOOKUP(B:B,'[2]2025年'!$B:$P,15,0) -> 30.00 | E12: =D12/C12 -> 100% | F12: 500 | G12: 0 | H12: 25 | I12: 455 | J12: 20 | K12: =VLOOKUP(B:B,'[2]2025年'!$B:$V,21,0) -> 234.45 | L12: 46.89%
B13: 钱坑镇 | F13: 750 | G13: 20 | H13: 400 | I13: 290 | J13: 40 | K13: =VLOOKUP(B:B,'[2]2025年'!$B:$V,21,0) -> 333.32 | L13: 44.44%
B14: 良田乡 | F14: 610 | G14: 100 | H14: 140 | I14: 330 | J14: 40 | K14: =VLOOKUP(B:B,'[2]2025年'!$B:$V,21,0) -> 228.00 | L14: 37.38%
B15: 五经富镇 | F15: 2340 | G15: 200 | H15: 1000 | I15: 1100 | J15: 40 | K15: =VLOOKUP(B:B,'[2]2025年'!$B:$V,21,0) -> 855.67 | L15: 36.57%
B16: 南山镇 | F16: 1620 | G16: 100 | H16: 200 | I16: 1280 | J16: 40 | K16: =VLOOKUP(B:B,'[2]2025年'!$B:$V,21,0) -> 576.57 | L16: 35.59%
B17: 五云镇 | C17: =VLOOKUP(B:B,'[1]2025年'!$B:$D,3,0) -> 30.00 | D17: =VLOOKUP(B:B,'[2]2025年'!$B:$P,15,0) -> 0.00 | E17: =D17/C17 -> 0% | F17: 1000 | G17: 100 | H17: 240 | I17: 620 | J17: 40 | K17: =VLOOKUP(B:B,'[2]2025年'!$B:$V,21,0) -> 333.00 | L17: 33.30%
B18: 灰寨镇 | F18: 440 | G18: 40 | H18: 50 | I18: 310 | J18: 40 | K18: =VLOOKUP(B:B,'[2]2025年'!$B:$V,21,0) -> 117.18 | L18: 26.63%
B19: 东园镇 | F19: 1025 | G19: 200 | H19: 245 | I19: 540 | J19: 40 | K19: =VLOOKUP(B:B,'[2]2025年'!$B:$V,21,0) -> 191.09 | L19: 18.64%
B20: 京溪园镇 | F20: 1220 | G20: 100 | H20: 230 | I20: 850 | J20: 40 | K20: =VLOOKUP(B:B,'[2]2025年'!$B:$V,21,0) -> 209.95 | L20: 17.21%
B21: 塔头镇 | F21: 1240 | G21: 250 | H21: 350 | I21: 600 | J21: 40 | K21: =VLOOKUP(B:B,'[2]2025年'!$B:$V,21,0) -> 195.53 | L21: 15.77%
B22: 坪上镇 | F22: 1020 | G22: 200 | H22: 300 | I22: 480 | J22: 40 | K22: =VLOOKUP(B:B,'[2]2025年'!$B:$V,21,0) -> 157.98 | L22: 15.49%
B23: 上砂镇 | F23: 1050 | G23: 60 | H23: 230 | I23: 720 | J23: 40 | K23: =VLOOKUP(B:B,'[2]2025年'!$B:$V,21,0) -> 156.18 | L23: 14.87%
B24: 凤江镇 | F24: 1100 | G24: 180 | H24: 130 | I24: 750 | J24: 40 | K24: =VLOOKUP(B:B,'[2]2025年'!$B:$V,21,0) -> 114.83 | L24: 10.44%
B25: 金和镇 | C25: =VLOOKUP(B:B,'[1]2025年'!$B:$D,3,0) -> 45.00 | D25: =VLOOKUP(B:B,'[2]2025年'!$B:$P,15,0) -> 45.00 | E25: =D25/C25 -> 100% | F25: 440 | G25: 100 | H25: 100 | I25: 200 | J25: 40 | K25: =VLOOKUP(B:B,'[2]2025年'!$B:$V,21,0) -> 33.96 | L25: 7.72%

Sheet 文档所需数据 (hidden)
A1: 附表
A2: 2021-2022年全县17个乡镇（街道）驻镇帮镇扶村资金使用情况
A3: 制表单位：揭西县乡村振兴局 | H3: 单位：万元 | M3: 制表时间：2023年4月16日
A4: 乡镇（街道） | B4: 2021年度 | I4: 2022年度 | P4: 备注 | Q4: 2022年省级资金支出 | R4: 2022年省级资金支出率
B5: 资金到位情况 | G5: 支出情况 | I5: 资金到位情况 | N5: 支出情况
B6: 小计 | C6: 省级 | D6: 东莞 | E6: 市级 | F6: 县级 | G6: 已支出 | H6: 支出率 | I6: 小计 | J6: 省级 | K6: 东莞 | L6: 市级 | M6: 县级 | N6: 已支出 | O6: 支出率
A7: 合计 | B7: =SUM(B8:B24) -> 22040 | C7: 8000 | D7: 9600 | E7: 240 | F7: 4200 | G7: 22040 | H7: =G7/B7*100% -> 100% | I7: =SUM(I8:I24) -> 38056 | J7: 22896 | K7: 9600 | L7: 1360 | M7: 4200 | N7: 35390.39 | O7: =N7/I7*100% -> 93.00% | Q7: =SUM(Q8:Q24) -> 21460.58 | R7: =Q7/J7 -> 93.73%
A8: 上砂镇 | B8: =C8+D8+E8+F8 -> 1265 | C8: 500 | D8: 600 | E8: 15 | F8: 150 | G8: 1265 | H8: =G8/B8*100% -> 100% | I8: =J8+K8+L8+M8 -> 2266 | J8: 1431 | K8: 600 | L8: 85 | M8: 150 | N8: 2266 | O8: 100% | Q8: 1431.00 | R8: 100.00%
A9: 五云镇 | B9: 1265 | C9: 500 | D9: 600 | E9: 15 | F9: 150 | G9: 1265 | H9: 100% | I9: 2266 | J9: 1431 | K9: 600 | L9: 85 | M9: 150 | N9: 2209 | O9: 97.48% | Q9: 1431.00 | R9: 100.00%
A10: 良田乡 | B10: 1265 | C10: 500 | D10: 600 | E10: 15 | F10: 150 | G10: 1265 | H10: 100% | I10: 1766 | J10: 931 | K10: 600 | L10: 85 | M10: 150 | N10: 1766 | O10: 100% | Q10: 931.00 | R10: 100.00%
A11: 坪上镇 | B11: 1380 | C11: 500 | D11: 715 | E11: 15 | F11: 150 | G11: 1380 | H11: 100% | I11: 2151 | J11: 1316 | K11: 600 | L11: 85 | M11: 150 | N11: 2070 | O11: 96.24% | Q11: 1294.12 | R11: 98.34%
A12: 河婆街道 | B12: 1800 | C12: 0 | D12: 0 | E12: 0 | F12: 1800 | G12: 1800 | H12: 100% | I12: 1800 | J12: 0 | K12: 0 | L12: 0 | M12: 1800 | N12: 1800 | O12: 100% | Q12: 0.00
A13: 龙潭镇 | B13: 1270 | C13: 500 | D13: 605 | E13: 15 | F13: 150 | G13: 1270 | H13: 100% | I13: 2261 | J13: 1426 | K13: 600 | L13: 85 | M13: 150 | N13: 2189 | O13: 96.80% | Q13: 1404.52 | R13: =Q13/J13 -> 98.49%
A14: 南山镇 | B14: 1265 | C14: 500 | D14: 600 | E14: 15 | F14: 150 | G14: 1265 | H14: 100% | I14: 2266 | J14: 1431 | K14: 600 | L14: 85 | M14: 150 | N14: 2184.76 | O14: 96.41% | Q14: 1415.30 | R14: 98.90%
A15: 灰寨镇 | B15: 1320 | C15: 500 | D15: 655 | E15: 15 | F15: 150 | G15: 1320 | H15: 100% | I15: 2211 | J15: 1376 | K15: 600 | L15: 85 | M15: 150 | N15: 2103.84 | O15: 95.15% | Q15: 1277.77 | R15: 92.86%
A16: 京溪园镇 | B16: 1290 | C16: 500 | D16: 625 | E16: 15 | F16: 150 | G16: 1290 | H16: 100% | I16: 2241 | J16: 1406 | K16: 600 | L16: 85 | M16: 150 | N16: 1875.20 | O16: 83.68% | Q16: 1175.58 | R16: 83.61%
A17: 五经富镇 | B17: 1265 | C17: 500 | D17: 600 | E17: 15 | F17: 150 | G17: 1265 | H17: 100% | I17: 2266 | J17: 1431 | K17: 600 | L17: 85 | M17: 150 | N17: 2048.36 | O17: 90.40% | Q17: 1296.13 | R17: 90.57%
A18: 塔头镇 | B18: 1265 | C18: 500 | D18: 600 | E18: 15 | F18: 150 | G18: 1265 | H18: 100% | I18: 2266 | J18: 1431 | K18: 600 | L18: 85 | M18: 150 | N18: 1997.92 | O18: 88.17% | Q18: 1199.20 | R18: 83.80%
A19: 东园镇 | B19: 1265 | C19: 500 | D19: 600 | E19: 15 | F19: 150 | G19: 1265 | H19: 100% | I19: 2266 | J19: 1431 | K19: 600 | L19: 85 | M19: 150 | N19: 2266 | O19: 100% | Q19: 1431.00 | R19: 100.00%
A20: 棉湖镇 | B20: 1265 | C20: 500 | D20: 600 | E20: 15 | F20: 150 | G20: 1265 | H20: 100% | I20: 2266 | J20: 1431 | K20: 600 | L20: 85 | M20: 150 | N20: 1722.47 | O20: 76.01% | Q20: 1165.98 | R20: 81.48%
A21: 凤江镇 | B21: 1061 | C21: 500 | D21: 396 | E21: 15 | F21: 150 | G21: 1061 | H21: 100% | I21: 2670 | J21: 1835 | K21: 600 | L21: 85 | M21: 150 | N21: 2670 | O21: 100% | Q21: 1835.00 | R21: 100.00%
A22: 金和镇 | B22: 1319 | C22: 500 | D22: 654 | E22: 15 | F22: 150 | G22: 1319 | H22: 100% | I22: 2212 | J22: 1377 | K22: 600 | L22: 85 | M22: 150 | N22: 1847.05 | O22: 83.50% | Q22: 1250.13 | R22: 90.79%
A23: 钱坑镇 | B23: 1265 | C23: 500 | D23: 600 | E23: 15 | F23: 150 | G23: 1265 | H23: 100% | I23: 2566 | J23: 1731 | K23: 600 | L23: 85 | M23: 150 | N23: 2566 | O23: 100% | Q23: 1731.00 | R23: 100.00%
A24: 大溪镇 | B24: 1215 | C24: 500 | D24: 550 | E24: 15 | F24: 150 | G24: 1215 | H24: 100% | I24: 2316 | J24: 1481 | K24: 600 | L24: 85 | M24: 150 | N24: 1809.03 | O24: 78.11% | Q24: 1191.84 | R24: 80.48%
G27: 2021+2022 | H27: 安排资金 | I27: 支出资金 | N27: 支出率
H28: =B7+I7 -> 60096 | I28: =G7+N7 -> 57430.39 | N28: =I28/H28 -> 95.56%
A32: 附表2
A33: 2022年全县17个乡镇（街道）衔接资金使用情况
A34: 制表单位：揭西县乡村振兴局 | F34: 单位：万元 | I34: 数据截止时间：2023年8月17日
A35: 乡镇（街道） | B35: 中央衔接推进乡村振兴补助资金 | E35: 乡村振兴驻镇帮镇扶村资金 | L35: 备注
B36: 资金到位情况 | C36: 支出情况 | E36: 资金到位情况 | J36: 支出情况
C37: 已支出 | D37: 支出率 | E37: 小计 | F37: 省级 | G37: 东莞 | H37: 市级 | I37: 县级 | J37: 已支出 | K37: 支出率
A38: 合计 | B38: =SUM(B39:B55) -> 875 | C38: 875 | D38: =C38/B38*100% -> 100% | E38: 38056 | F38: 22896 | G38: 9600 | H38: 1360 | I38: 4200 | J38: 37336.66 | K38: =J38/E38 -> 98.11%
A39: 上砂镇 | E39: =F39+G39+H39+I39 -> 2266 | F39: 1431 | G39: 600 | H39: 85 | I39: 150 | J39: 2266 | K39: =J39/E39*100% -> 100%
A40: 五云镇 | E40: 2266 | F40: 1431 | G40: 600 | H40: 85 | I40: 150 | J40: 2266 | K40: 100%
A41: 良田乡 | E41: 1766 | F41: 931 | G41: 600 | H41: 85 | I41: 150 | J41: 1766 | K41: 100%
A42: 坪上镇 | E42: 2151 | F42: 1316 | G42: 600 | H42: 85 | I42: 150 | J42: 2151 | K42: 100%
A43: 河婆街道 | E43: 1800 | F43: 0 | G43: 0 | H43: 0 | I43: 1800 | J43: 1800 | K43: 100%
A44: 龙潭镇 | E44: 2261 | F44: 1426 | G44: 600 | H44: 85 | I44: 150 | J44: 2261 | K44: 100%
A45: 南山镇 | E45: 2266 | F45: 1431 | G45: 600 | H45: 85 | I45: 150 | J45: 2266 | K45: 100%
A46: 灰寨镇 | E46: 2211 | F46: 1376 | G46: 600 | H46: 85 | I46: 150 | J46: 2109.77 | K46: 95.42%
A47: 京溪园镇 | E47: 2241 | F47: 1406 | G47: 600 | H47: 85 | I47: 150 | J47: 2241 | K47: 100%
A48: 五经富镇 | E48: 2266 | F48: 1431 | G48: 600 | H48: 85 | I48: 150 | J48: 2048.36 | K48: 90.4%
A49: 塔头镇 | E49: 2266 | F49: 1431 | G49: 600 | H49: 85 | I49: 150 | J49: 2266 | K49: 100%
A50: 东园镇 | E50: 2266 | F50: 1431 | G50: 600 | H50: 85 | I50: 150 | J50: 2266 | K50: 100%
A51: 棉湖镇 | E51: 2266 | F51: 1431 | G51: 600 | H51: 85 | I51: 150 | J51: 2266 | K51: 100%
A52: 凤江镇 | E52: 2670 | F52: 1835 | G52: 600 | H52: 85 | I52: 150 | J52: 2670 | K52: 100%
A53: 金和镇 | B53: 875 | C53: 875 | D53: =C53/B53*100% -> 100% | E53: 2212 | F53: 1377 | G53: 600 | H53: 85 | I53: 150 | J53: 1975.98 | K53: 89.33%
A54: 钱坑镇 | E54: 2566 | F54: 1731 | G54: 600 | H54: 85 | I54: 150 | J54: 2566 | K54: 100%
A55: 大溪镇 | E55: 2316 | F55: 1481 | G55: 600 | H55: 85 | I55: 150 | J55: 2151.54 | K55: 92.90%
A58: 附表3
A59: 2023年全县17个乡镇（街道）衔接资金使用情况
A60: 制表单位：揭西县乡村振兴局 | F60: 单位：万元 | I60: 数据截止时间：2023年8月17日
A61: 乡镇（街道） | B61: 中央衔接推进乡村振兴补助资金 | E61: 乡村振兴驻镇帮镇扶村资金 | L61: 备注
B62: 资金到位情况 | C62: 支出情况 | E62: 资金到位情况 | J62: 支出情况
C63: 已支出 | D63: 支出率 | E63: 小计 | F63: 省级 | G63: 东莞 | H63: 市级 | I63: 县级 | J63: 已支出 | K63: 支出率
A64: 合计 | B64: =SUM(B65:B81) -> 1000 | C64: 782.68 | D64: =C64/B64*100% -> 78.27% | E64: 32200 | F64: 17600 | G64: 9600 | H64: 800 | I64: 4200 | J64: 12961.39 | K64: =J64/E64 -> 40.25%
A65: 上砂镇 | B65: 50 | C65: 50 | D65: 100% | E65: =F65+G65+H65+I65 -> 1800 | F65: 1100 | G65: 600 | H65: 50 | I65: 50 | J65: 941.2 | K65: =J65/E65*100% -> 52.29%
A66: 五云镇 | B66: 63 | C66: 37.8 | D66: 60% | E66: 1800 | F66: 1100 | G66: 600 | H66: 50 | I66: 50 | J66: 914.02 | K66: 50.78%
A67: 良田乡 | B67: 50 | C67: 40.11 | D67: 80.22% | E67: 2300 | F67: 1600 | G67: 600 | H67: 50 | I67: 50 | J67: 1190.8 | K67: 51.77%
A68: 坪上镇 | B68: 72 | C68: 52.73 | D68: 73.23% | E68: 1800 | F68: 1100 | G68: 600 | H68: 50 | I68: 50 | J68: 905.73 | K68: 50.32%
A69: 河婆街道 | B69: 60 | C69: 32.11 | D69: 53.52% | E69: 1700 | F69: 0 | G69: 0 | H69: 0 | I69: 1700 | J69: 851.69 | K69: 50.1%
A70: 龙潭镇 | B70: 62 | C70: 39.34 | D70: 63.45% | E70: 3500 | F70: 1100 | G70: 600 | H70: 50 | I70: 1750 | J70: 1503.29 | K70: 42.95%
A71: 南山镇 | B71: 58 | C71: 32.06 | D71: 55.28% | E71: 1800 | F71: 1100 | G71: 600 | H71: 50 | I71: 50 | J71: 902 | K71: 50.11%
A72: 灰寨镇 | B72: 50 | C72: 41.3 | D72: 82.6% | E72: 1800 | F72: 1100 | G72: 600 | H72: 50 | I72: 50 | J72: 420.55 | K72: 23.36%
A73: 京溪园镇 | B73: 60 | C73: 51.29 | D73: 85.48% | E73: 1800 | F73: 1100 | G73: 600 | H73: 50 | I73: 50 | J73: 195.82 | K73: 10.88%
A74: 五经富镇 | B74: 50 | C74: 40.7 | D74: 81.4% | E74: 1800 | F74: 1100 | G74: 600 | H74: 50 | I74: 50 | J74: 957.77 | K74: 53.21%
A75: 塔头镇 | B75: 52 | C75: 52 | D75: 100% | E75: 1800 | F75: 1100 | G75: 600 | H75: 50 | I75: 50 | J75: 706.08 | K75: 39.23%
A76: 东园镇 | B76: 60 | C76: 60 | D76: 100% | E76: 1800 | F76: 1100 | G76: 600 | H76: 50 | I76: 50 | J76: 903.96 | K76: 50.2%
A77: 棉湖镇 | B77: 60 | C77: 34.64 | D77: 57.73% | E77: 1800 | F77: 1100 | G77: 600 | H77: 50 | I77: 50 | J77: 728.78 | K77: 40.49%
A78: 凤江镇 | B78: 70 | C78: 70 | D78: 100% | E78: 1600 | F78: 900 | G78: 600 | H78: 50 | I78: 50 | J78: 335.03 | K78: 20.94%
A79: 金和镇 | B79: 60 | C79: 60 | D79: 100% | E79: 1800 | F79: 1100 | G79: 600 | H79: 50 | I79: 50 | J79: 207.67 | K79: 11.54%
A80: 钱坑镇 | B80: 64 | C80: 44.8 | D80: 70% | E80: 1500 | F80: 800 | G80: 600 | H80: 50 | I80: 50 | J80: 812.58 | K80: 54.17%
A81: 大溪镇 | B81: 59 | C81: 43.81 | D81: 74.25% | E81: 1800 | F81: 1100 | G81: 600 | H81: 50 | I81: 50 | J81: 484.41 | K81: 26.91%
